[Event "*** Titled Tuesday Blitz"]
[Site "Chess.com"]
[Date "2021.04.27"]
[Round "2"]
[White "guillembaches"]
[Black "BJthechessgod"]
[Result "1-0"]
[WhiteElo "2509"]
[BlackElo "2283"]
[TimeControl "180+1"]
[EndTime "10:18:24 PDT"]
[Termination "guillembaches won on time"]

1. d4 {[%clk 0:03:00.9]} 1... Nf6 {[%clk 0:02:55.6]} 2. c4 {[%clk 0:03:01]} 2...
e6 {[%clk 0:02:54.8]} 3. Nc3 {[%clk 0:03:01]} 3... Bb4 {[%clk 0:02:54.2]} 4. e3
{[%clk 0:03:01.2]} 4... c5 {[%clk 0:02:52.4]} 5. Ne2 {[%clk 0:03:00.2]} 5...
cxd4 {[%clk 0:02:45.2]} 6. exd4 {[%clk 0:03:00.4]} 6... d5 {[%clk 0:02:43.5]} 7.
a3 {[%clk 0:03:00.5]} 7... Bxc3+ {[%clk 0:02:38]} 8. Nxc3 {[%clk 0:03:01.4]}
8... O-O {[%clk 0:02:37.8]} 9. c5 {[%clk 0:02:55]} 9... Nc6 {[%clk 0:02:25.5]}
10. Bb5 {[%clk 0:02:54.5]} 10... Bd7 {[%clk 0:02:21]} 11. O-O {[%clk 0:02:52.2]}
11... a6 {[%clk 0:02:15.1]} 12. Ba4 {[%clk 0:02:47.4]} 12... Rc8 {[%clk
0:02:12.6]} 13. Bf4 {[%clk 0:02:40.8]} 13... b5 {[%clk 0:02:09.3]} 14. Bc2
{[%clk 0:02:36.8]} 14... Re8 {[%clk 0:02:02.3]} 15. Re1 {[%clk 0:02:30.4]} 15...
h6 {[%clk 0:01:56.9]} 16. Qd3 {[%clk 0:02:25.3]} 16... b4 {[%clk 0:01:47.1]} 17.
Na4 {[%clk 0:02:19.9]} 17... Na5 {[%clk 0:01:34.2]} 18. Nb6 {[%clk 0:02:07.9]}
18... Bb5 {[%clk 0:01:32.6]} 19. Qf3 {[%clk 0:01:50.9]} 19... Nc6 {[%clk
0:01:23.1]} 20. Nxc8 {[%clk 0:01:48.5]} 20... Nxd4 {[%clk 0:01:18.1]} 21. Qd1
{[%clk 0:01:42.3]} 21... Nxc2 {[%clk 0:01:12.9]} 22. Qxc2 {[%clk 0:01:41.9]}
22... Qxc8 {[%clk 0:01:10.5]} 23. axb4 {[%clk 0:01:41.6]} 23... Ne4 {[%clk
0:01:07.7]} 24. f3 {[%clk 0:01:35]} 24... Nf6 {[%clk 0:01:05]} 25. Be5 {[%clk
0:01:34.3]} 25... Nd7 {[%clk 0:01:04.4]} 26. Qc3 {[%clk 0:01:26.2]} 26... f6
{[%clk 0:01:01.8]} 27. Bd6 {[%clk 0:01:25.3]} 27... e5 {[%clk 0:00:59.9]} 28.
Rad1 {[%clk 0:01:25.2]} 28... d4 {[%clk 0:00:58.9]} 29. Qb3+ {[%clk 0:01:23.1]}
29... Kh8 {[%clk 0:00:58.1]} 30. f4 {[%clk 0:01:19.3]} 30... d3 {[%clk
0:00:51.5]} 31. fxe5 {[%clk 0:01:16.3]} 31... fxe5 {[%clk 0:00:44.2]} 32. Re4
{[%clk 0:01:07.6]} 32... Bc6 {[%clk 0:00:35.1]} 33. Qxd3 {[%clk 0:01:01.8]}
33... Bxe4 {[%clk 0:00:31.9]} 34. Qxe4 {[%clk 0:01:02.3]} 34... Nf6 {[%clk
0:00:32.5]} 35. Qc4 {[%clk 0:00:57.5]} 35... Qc6 {[%clk 0:00:29]} 36. Qf7 {[%clk
0:00:53]} 36... e4 {[%clk 0:00:18.6]} 37. Rf1 {[%clk 0:00:47.1]} 37... Ng8
{[%clk 0:00:10.9]} 38. Bf8 {[%clk 0:00:35.1]} 38... Rxf8 {[%clk 0:00:02.1]} 39.
Qxf8 {[%clk 0:00:36]} 39... e3 {[%clk 0:00:02]} 40. Qf3 {[%clk 0:00:35.8]} 40...
Qe6 {[%clk 0:00:01.3]} 41. Re1 {[%clk 0:00:35]} 41... Nf6 {[%clk 0:00:01.5]} 42.
Qxe3 {[%clk 0:00:34.9]} 42... Qc4 {[%clk 0:00:01.8]} 43. Qd2 {[%clk 0:00:31]}
43... Ne4 {[%clk 0:00:01]} 44. Qe3 {[%clk 0:00:26.3]} 1-0

[Event "*** Titled Tuesday Blitz"]
[Site "Chess.com"]
[Date "2021.04.27"]
[Round "2"]
[White "atwalcb"]
[Black "retropwr"]
[Result "1-0"]
[WhiteElo "2443"]
[BlackElo "2226"]
[TimeControl "180+1"]
[EndTime "10:18:24 PDT"]
[Termination "atwalcb won on time"]

1. d4 {[%clk 0:02:45]} 1... d6 {[%clk 0:03:00.9]} 2. e4 {[%clk 0:02:42.7]} 2...
Nf6 {[%clk 0:03:00.6]} 3. Nc3 {[%clk 0:02:42.9]} 3... e5 {[%clk 0:03:00.3]} 4.
f4 {[%clk 0:02:38.7]} 4... exd4 {[%clk 0:02:58.4]} 5. Qxd4 {[%clk 0:02:39.6]}
5... Be7 {[%clk 0:02:55]} 6. Bb5+ {[%clk 0:02:30.8]} 6... c6 {[%clk 0:02:51.4]}
7. Bd3 {[%clk 0:02:29.7]} 7... O-O {[%clk 0:02:51]} 8. Nf3 {[%clk 0:02:25.1]}
8... d5 {[%clk 0:02:40.1]} 9. e5 {[%clk 0:02:24]} 9... Nfd7 {[%clk 0:02:19.4]}
10. Qf2 {[%clk 0:02:06.4]} 10... f6 {[%clk 0:02:12.4]} 11. Qh4 {[%clk
0:02:00.9]} 11... g6 {[%clk 0:01:59.2]} 12. Qg3 {[%clk 0:01:41.2]} 12... Qe8
{[%clk 0:01:41.2]} 13. Bd2 {[%clk 0:01:38.4]} 13... fxe5 {[%clk 0:01:35.9]} 14.
fxe5 {[%clk 0:01:39.3]} 14... Bf6 {[%clk 0:01:25.6]} 15. O-O-O {[%clk
0:01:37.1]} 15... Nxe5 {[%clk 0:01:25.3]} 16. Rde1 {[%clk 0:01:30.6]} 16...
Nxd3+ {[%clk 0:01:25.1]} 17. cxd3 {[%clk 0:01:31.5]} 17... Qd7 {[%clk
0:01:16.2]} 18. Bh6 {[%clk 0:01:30.8]} 18... Bg7 {[%clk 0:01:07.2]} 19. Bf4
{[%clk 0:01:09.3]} 19... Na6 {[%clk 0:01:02.5]} 20. Bd6 {[%clk 0:01:09.4]} 20...
Rd8 {[%clk 0:00:55.7]} 21. Be5 {[%clk 0:01:03.6]} 21... Qg4 {[%clk 0:00:50.4]}
22. Qf2 {[%clk 0:00:53.7]} 22... Bd7 {[%clk 0:00:44.8]} 23. h3 {[%clk
0:00:45.8]} 23... Qf5 {[%clk 0:00:42.7]} 24. g4 {[%clk 0:00:42.4]} 24... Qf7
{[%clk 0:00:38.6]} 25. Bxg7 {[%clk 0:00:41.9]} 25... Qxg7 {[%clk 0:00:35.9]} 26.
Ne5 {[%clk 0:00:32.6]} 26... Rf8 {[%clk 0:00:32.7]} 27. Qg3 {[%clk 0:00:29.7]}
27... Rae8 {[%clk 0:00:31.7]} 28. d4 {[%clk 0:00:29.9]} 28... Re7 {[%clk
0:00:20.7]} 29. Kb1 {[%clk 0:00:29.7]} 29... Rfe8 {[%clk 0:00:19.7]} 30. h4
{[%clk 0:00:24.8]} 30... Nc7 {[%clk 0:00:19.4]} 31. h5 {[%clk 0:00:24.8]} 31...
g5 {[%clk 0:00:17.9]} 32. h6 {[%clk 0:00:25.1]} 32... Qf6 {[%clk 0:00:16.2]} 33.
Ref1 {[%clk 0:00:22.6]} 33... Qd6 {[%clk 0:00:15.3]} 34. Qe3 {[%clk 0:00:22.7]}
34... Ne6 {[%clk 0:00:14]} 35. Rf6 {[%clk 0:00:21.4]} 35... Kh8 {[%clk
0:00:07.5]} 36. Rhf1 {[%clk 0:00:21]} 36... Rg8 {[%clk 0:00:06.7]} 37. Rf7
{[%clk 0:00:18.7]} 37... Nf4 {[%clk 0:00:05.3]} 38. R1xf4 {[%clk 0:00:15.4]}
38... gxf4 {[%clk 0:00:04.8]} 39. Qxf4 {[%clk 0:00:16.3]} 1-0

[Event "*** Titled Tuesday Blitz"]
[Site "Chess.com"]
[Date "2021.04.27"]
[Round "2"]
[White "Artem_Sadovsky"]
[Black "Loy_Konstantin"]
[Result "1-0"]
[WhiteElo "2698"]
[BlackElo "2390"]
[TimeControl "180+1"]
[EndTime "10:18:25 PDT"]
[Termination "Artem_Sadovsky won on time"]

1. Nf3 {[%clk 0:03:00.9]} 1... c5 {[%clk 0:02:59.5]} 2. b3 {[%clk 0:03:00.5]}
2... Nc6 {[%clk 0:02:58.2]} 3. Bb2 {[%clk 0:03:01.1]} 3... d6 {[%clk 0:02:58.7]}
4. e3 {[%clk 0:03:01.7]} 4... e5 {[%clk 0:02:58.8]} 5. d4 {[%clk 0:03:02.4]}
5... cxd4 {[%clk 0:02:58.6]} 6. exd4 {[%clk 0:03:03]} 6... e4 {[%clk 0:02:59.2]}
7. Nfd2 {[%clk 0:03:03.4]} 7... d5 {[%clk 0:02:58.8]} 8. c4 {[%clk 0:03:03.9]}
8... dxc4 {[%clk 0:02:51.8]} 9. Bxc4 {[%clk 0:03:02.9]} 9... Nf6 {[%clk
0:02:09.3]} 10. O-O {[%clk 0:03:03.5]} 10... Bd6 {[%clk 0:02:04.5]} 11. Nxe4
{[%clk 0:02:31.9]} 11... Nxe4 {[%clk 0:01:47.9]} 12. Re1 {[%clk 0:02:32]} 12...
Bxh2+ {[%clk 0:01:25.1]} 13. Kf1 {[%clk 0:02:32.2]} 13... O-O {[%clk 0:01:03.9]}
14. Rxe4 {[%clk 0:02:26.8]} 14... Bd6 {[%clk 0:01:01.6]} 15. Qh5 {[%clk
0:02:13.6]} 15... Qf6 {[%clk 0:00:42.9]} 16. Nc3 {[%clk 0:02:08.3]} 16... Bf5
{[%clk 0:00:39]} 17. Rae1 {[%clk 0:01:42.1]} 17... Qg6 {[%clk 0:00:30.4]} 18.
Rh4 {[%clk 0:01:21.9]} 18... Qxh5 {[%clk 0:00:28.3]} 19. Rxh5 {[%clk 0:01:22.8]}
19... Bg6 {[%clk 0:00:28.7]} 20. Rb5 {[%clk 0:01:13.9]} 20... Nxd4 {[%clk
0:00:16.9]} 21. Rxb7 {[%clk 0:01:13.2]} 21... Rfe8 {[%clk 0:00:11.3]} 22. Rxe8+
{[%clk 0:01:05.8]} 22... Rxe8 {[%clk 0:00:12.2]} 23. Rxa7 {[%clk 0:00:44.7]}
23... Nc2 {[%clk 0:00:12.3]} 24. Ne2 {[%clk 0:00:42.9]} 24... Bc5 {[%clk
0:00:09.2]} 25. Rc7 {[%clk 0:00:40.4]} 25... Bb6 {[%clk 0:00:09.5]} 26. Bxf7+
{[%clk 0:00:40.3]} 26... Bxf7 {[%clk 0:00:09.6]} 27. Rxc2 {[%clk 0:00:40.7]}
27... Bg6 {[%clk 0:00:09.3]} 28. Rd2 {[%clk 0:00:38]} 28... Ba5 {[%clk
0:00:09.1]} 29. Bc3 {[%clk 0:00:38.5]} 29... Bb6 {[%clk 0:00:08.8]} 30. Nd4
{[%clk 0:00:31.5]} 30... Rf8 {[%clk 0:00:06.5]} 31. a4 {[%clk 0:00:25.2]} 31...
Bf7 {[%clk 0:00:05.6]} 32. b4 {[%clk 0:00:22.2]} 32... Bc4+ {[%clk 0:00:04.9]}
33. Kg1 {[%clk 0:00:22.8]} 33... Rf4 {[%clk 0:00:04.2]} 34. a5 {[%clk
0:00:22.3]} 34... Ba7 {[%clk 0:00:04.2]} 35. Nc6 {[%clk 0:00:14]} 1-0

[Event "*** Titled Tuesday Blitz"]
[Site "Chess.com"]
[Date "2021.04.27"]
[Round "2"]
[White "rynos0411"]
[Black "Nozdrachev_Vladislav"]
[Result "0-1"]
[WhiteElo "2500"]
[BlackElo "2712"]
[TimeControl "180+1"]
[EndTime "10:18:26 PDT"]
[Termination "Nozdrachev_Vladislav won by checkmate"]

1. d4 {[%clk 0:03:00.9]} 1... Nf6 {[%clk 0:02:59.1]} 2. c4 {[%clk 0:03:00.1]}
2... e6 {[%clk 0:02:58.7]} 3. Nf3 {[%clk 0:03:00.4]} 3... b6 {[%clk 0:02:56.7]}
4. g3 {[%clk 0:02:59.6]} 4... Ba6 {[%clk 0:02:54.9]} 5. b3 {[%clk 0:02:58.4]}
5... d5 {[%clk 0:02:50.4]} 6. Bg2 {[%clk 0:02:54.7]} 6... Bd6 {[%clk 0:02:48.6]}
7. O-O {[%clk 0:02:48.8]} 7... O-O {[%clk 0:02:48.1]} 8. Nc3 {[%clk 0:02:44.2]}
8... Nbd7 {[%clk 0:02:45.7]} 9. cxd5 {[%clk 0:02:40.2]} 9... exd5 {[%clk
0:02:41.7]} 10. Bg5 {[%clk 0:02:34.7]} 10... h6 {[%clk 0:02:39.2]} 11. Bf4
{[%clk 0:02:28]} 11... Bxf4 {[%clk 0:02:23.1]} 12. gxf4 {[%clk 0:02:27.6]} 12...
c5 {[%clk 0:02:23.2]} 13. Ne5 {[%clk 0:02:22.9]} 13... cxd4 {[%clk 0:02:13.6]}
14. Qxd4 {[%clk 0:02:17.3]} 14... Nc5 {[%clk 0:02:13.4]} 15. Rfe1 {[%clk
0:02:00.5]} 15... Ne6 {[%clk 0:02:12.5]} 16. Qd2 {[%clk 0:02:00.5]} 16... d4
{[%clk 0:02:09.1]} 17. Ne4 {[%clk 0:01:52.7]} 17... Nxe4 {[%clk 0:01:57.4]} 18.
Bxe4 {[%clk 0:01:52]} 18... Rc8 {[%clk 0:01:57.5]} 19. Rac1 {[%clk 0:01:45.7]}
19... Qh4 {[%clk 0:01:52.4]} 20. e3 {[%clk 0:01:43.5]} 20... Ng5 {[%clk
0:01:43.5]} 21. fxg5 {[%clk 0:01:31]} 21... Rxc1 {[%clk 0:01:38.9]} 22. Rxc1
{[%clk 0:01:25.2]} 22... Qxe4 {[%clk 0:00:55.8]} 23. Qxd4 {[%clk 0:01:20.5]}
23... Qf5 {[%clk 0:00:55.5]} 24. gxh6 {[%clk 0:01:03.5]} 24... Qg5+ {[%clk
0:00:44.1]} 25. Kh1 {[%clk 0:00:45.1]} 25... Bb7+ {[%clk 0:00:42.7]} 26. f3
{[%clk 0:00:44.1]} 26... Qxh6 {[%clk 0:00:40.8]} 27. Rc7 {[%clk 0:00:35.4]}
27... Ba8 {[%clk 0:00:34.5]} 28. Qf4 {[%clk 0:00:12.2]} 28... Qh3 {[%clk
0:00:32]} 29. Kg1 {[%clk 0:00:08.2]} 29... Bd5 {[%clk 0:00:31.3]} 30. Rd7 {[%clk
0:00:07.4]} 30... Be6 {[%clk 0:00:20.3]} 31. Rd1 {[%clk 0:00:06.2]} 31... Rc8
{[%clk 0:00:19.8]} 32. Ng4 {[%clk 0:00:06.4]} 32... Qh5 {[%clk 0:00:16.7]} 33.
Qg3 {[%clk 0:00:02.4]} 33... Kh8 {[%clk 0:00:15.7]} 34. Ne5 {[%clk 0:00:02]}
34... Rc2 {[%clk 0:00:15.2]} 35. Rd8+ {[%clk 0:00:01.6]} 35... Kh7 {[%clk
0:00:15.6]} 36. f4 {[%clk 0:00:01.3]} 36... Rc1+ {[%clk 0:00:15.5]} 37. Kf2
{[%clk 0:00:01.8]} 37... Rc2+ {[%clk 0:00:15.2]} 38. Ke1 {[%clk 0:00:02.3]}
38... Qe2# {[%clk 0:00:14.6]} 0-1

[Event "*** Titled Tuesday Blitz"]
[Site "Chess.com"]
[Date "2021.04.27"]
[Round "2"]
[White "viktorgen2021"]
[Black "poppy73"]
[Result "0-1"]
[WhiteElo "2398"]
[BlackElo "2181"]
[TimeControl "180+1"]
[EndTime "10:18:26 PDT"]
[Termination "poppy73 won by checkmate"]

1. d4 {[%clk 0:03:00.5]} 1... Nf6 {[%clk 0:02:56.4]} 2. Nf3 {[%clk 0:03:00.2]}
2... g6 {[%clk 0:02:56.9]} 3. g3 {[%clk 0:02:59.4]} 3... Bg7 {[%clk 0:02:57.4]}
4. Bg2 {[%clk 0:03:00]} 4... d6 {[%clk 0:02:57.8]} 5. O-O {[%clk 0:03:00.5]}
5... O-O {[%clk 0:02:58.4]} 6. a4 {[%clk 0:03:01.1]} 6... Nc6 {[%clk 0:02:53.9]}
7. Nc3 {[%clk 0:03:00.9]} 7... e5 {[%clk 0:02:49.5]} 8. e4 {[%clk 0:02:58.3]}
8... Bg4 {[%clk 0:02:45.1]} 9. dxe5 {[%clk 0:02:46.7]} 9... dxe5 {[%clk
0:02:30.2]} 10. Qxd8 {[%clk 0:02:45.7]} 10... Raxd8 {[%clk 0:02:29.9]} 11. Bg5
{[%clk 0:02:44.2]} 11... Bxf3 {[%clk 0:02:22.8]} 12. Bxf3 {[%clk 0:02:42.9]}
12... Nd4 {[%clk 0:02:22.8]} 13. Bd1 {[%clk 0:02:43.3]} 13... c6 {[%clk
0:02:23]} 14. a5 {[%clk 0:02:38.7]} 14... h6 {[%clk 0:02:17.6]} 15. Be3 {[%clk
0:02:37.7]} 15... Nd7 {[%clk 0:02:11.4]} 16. b4 {[%clk 0:02:34.7]} 16... f5
{[%clk 0:02:08]} 17. Rb1 {[%clk 0:02:20.6]} 17... a6 {[%clk 0:01:56]} 18. f3
{[%clk 0:02:03.9]} 18... f4 {[%clk 0:01:45.1]} 19. Bc1 {[%clk 0:01:57.4]} 19...
fxg3 {[%clk 0:01:27.2]} 20. hxg3 {[%clk 0:01:58.3]} 20... g5 {[%clk 0:01:11.9]}
21. Kg2 {[%clk 0:01:52.3]} 21... Rf6 {[%clk 0:01:00.1]} 22. Ne2 {[%clk
0:01:49.4]} 22... Nf8 {[%clk 0:00:43.6]} 23. Be3 {[%clk 0:01:43.3]} 23... Nfe6
{[%clk 0:00:38.2]} 24. c3 {[%clk 0:01:43]} 24... Nb5 {[%clk 0:00:29.5]} 25. Bb3
{[%clk 0:01:39.6]} 25... Rd3 {[%clk 0:00:23]} 26. Kf2 {[%clk 0:01:31]} 26...
Nxc3 {[%clk 0:00:15.4]} 27. Bc4 {[%clk 0:01:31]} 27... Nxe4+ {[%clk 0:00:13.6]}
28. Kg2 {[%clk 0:01:29.5]} 28... Rxe3 {[%clk 0:00:09]} 29. fxe4 {[%clk
0:01:29.9]} 29... Kf7 {[%clk 0:00:07.3]} 30. Rf5 {[%clk 0:01:28.5]} 30... Ke7
{[%clk 0:00:05.8]} 31. Rxe5 {[%clk 0:01:26.4]} 31... Rg6 {[%clk 0:00:05.4]} 32.
Rf5 {[%clk 0:01:22.7]} 32... Rxe4 {[%clk 0:00:05]} 33. Bd3 {[%clk 0:01:18.7]}
33... Re3 {[%clk 0:00:04.9]} 34. Rd1 {[%clk 0:01:19.3]} 34... Nd4 {[%clk
0:00:02.5]} 35. Nxd4 {[%clk 0:01:19]} 35... Bxd4 {[%clk 0:00:03.4]} 36. Rf2
{[%clk 0:01:17.1]} 36... Rd6 {[%clk 0:00:03.5]} 37. Rfd2 {[%clk 0:01:17.5]}
37... Be5 {[%clk 0:00:02.5]} 38. g4 {[%clk 0:01:16.4]} 38... Bf4 {[%clk
0:00:02]} 39. Kf1 {[%clk 0:01:04.7]} 39... Rg3 {[%clk 0:00:02.9]} 40. Re2+
{[%clk 0:01:04]} 40... Kf6 {[%clk 0:00:03]} 41. Bc2 {[%clk 0:01:03.5]} 41...
Rxd1+ {[%clk 0:00:02.3]} 42. Bxd1 {[%clk 0:01:04.4]} 42... Rxg4 {[%clk
0:00:02.6]} 43. Re8 {[%clk 0:01:04.9]} 43... Rg3 {[%clk 0:00:02.7]} 44. Rf8+
{[%clk 0:01:05]} 44... Kg7 {[%clk 0:00:02.3]} 45. Rd8 {[%clk 0:01:04.5]} 45...
Re3 {[%clk 0:00:01.9]} 46. Rd7+ {[%clk 0:01:04.7]} 46... Kf6 {[%clk 0:00:01.9]}
47. Rxb7 {[%clk 0:01:05.2]} 47... h5 {[%clk 0:00:02]} 48. Rb6 {[%clk 0:01:05.7]}
48... g4 {[%clk 0:00:02.1]} 49. Rxc6+ {[%clk 0:01:06]} 49... Kg5 {[%clk
0:00:02.4]} 50. Kg2 {[%clk 0:01:06]} 50... h4 {[%clk 0:00:02.4]} 51. Rc5+ {[%clk
0:01:05.7]} 51... Re5 {[%clk 0:00:01.8]} 52. Rc6 {[%clk 0:01:05]} 52... h3+
{[%clk 0:00:02.1]} 53. Kf2 {[%clk 0:01:04]} 53... g3+ {[%clk 0:00:03]} 54. Kf3
{[%clk 0:01:03.5]} 54... Re3# {[%clk 0:00:03.6]} 0-1

[Event "*** Titled Tuesday Blitz"]
[Site "Chess.com"]
[Date "2021.04.27"]
[Round "2"]
[White "kinga2008"]
[Black "c_r_e_e_p_e_r"]
[Result "0-1"]
[WhiteElo "2122"]
[BlackElo "2402"]
[TimeControl "180+1"]
[EndTime "10:18:26 PDT"]
[Termination "c_r_e_e_p_e_r won by checkmate"]

1. d4 {[%clk 0:02:57]} 1... Nf6 {[%clk 0:02:59.9]} 2. c4 {[%clk 0:02:53.1]} 2...
g6 {[%clk 0:02:59.6]} 3. Nc3 {[%clk 0:02:50.7]} 3... Bg7 {[%clk 0:02:59.9]} 4.
e4 {[%clk 0:02:51.6]} 4... O-O {[%clk 0:02:59.9]} 5. e5 {[%clk 0:02:44]} 5...
Ne8 {[%clk 0:02:58.9]} 6. Nf3 {[%clk 0:02:43.3]} 6... d6 {[%clk 0:02:58.9]} 7.
Bf4 {[%clk 0:02:41.1]} 7... Nd7 {[%clk 0:02:47.8]} 8. exd6 {[%clk 0:02:38.4]}
8... exd6 {[%clk 0:02:33.2]} 9. Bd3 {[%clk 0:02:34.2]} 9... a6 {[%clk 0:02:24]}
10. h4 {[%clk 0:02:31.2]} 10... Nef6 {[%clk 0:02:10.7]} 11. O-O {[%clk
0:02:27.2]} 11... Re8 {[%clk 0:02:05.6]} 12. Ng5 {[%clk 0:02:25.6]} 12... Nf8
{[%clk 0:02:01.9]} 13. Nge4 {[%clk 0:02:13.6]} 13... Nh5 {[%clk 0:01:59.5]} 14.
Bg5 {[%clk 0:02:11.4]} 14... f6 {[%clk 0:01:55.6]} 15. Be3 {[%clk 0:02:08.3]}
15... Ne6 {[%clk 0:01:50.8]} 16. g4 {[%clk 0:02:06.7]} 16... Nhf4 {[%clk
0:01:50]} 17. d5 {[%clk 0:01:55.7]} 17... Nxd3 {[%clk 0:01:43.8]} 18. Qxd3
{[%clk 0:01:43.5]} 18... Nc5 {[%clk 0:01:39.2]} 19. Nxc5 {[%clk 0:01:42.9]}
19... dxc5 {[%clk 0:01:38.9]} 20. f3 {[%clk 0:01:40.5]} 20... f5 {[%clk
0:01:33.3]} 21. Bg5 {[%clk 0:01:38.2]} 21... Qd6 {[%clk 0:01:22.2]} 22. f4
{[%clk 0:01:31.6]} 22... h6 {[%clk 0:01:15.6]} 23. gxf5 {[%clk 0:01:23.5]} 23...
Bxf5 {[%clk 0:01:14.6]} 24. Qg3 {[%clk 0:01:15.7]} 24... hxg5 {[%clk 0:01:13.2]}
25. hxg5 {[%clk 0:01:14.6]} 25... Bd4+ {[%clk 0:01:12.3]} 26. Kg2 {[%clk
0:01:09.9]} 26... Re3 {[%clk 0:01:10.5]} 27. Qh4 {[%clk 0:01:03.8]} 27... Bh3+
{[%clk 0:00:31.5]} 28. Kh2 {[%clk 0:00:55.9]} 28... Bxf1 {[%clk 0:00:31.3]} 29.
Rxf1 {[%clk 0:00:53.3]} 29... Kf7 {[%clk 0:00:25.6]} 30. Kg2 {[%clk 0:00:38.6]}
30... Rh8 {[%clk 0:00:23.2]} 31. Qg4 {[%clk 0:00:31.6]} 31... Bxc3 {[%clk
0:00:21.8]} 32. bxc3 {[%clk 0:00:27.4]} 32... Qe7 {[%clk 0:00:20.1]} 33. Kg1
{[%clk 0:00:19.6]} 33... Rhh3 {[%clk 0:00:12.1]} 34. Kf2 {[%clk 0:00:15.6]}
34... Rh2+ {[%clk 0:00:10.7]} 35. Kg1 {[%clk 0:00:15.1]} 35... Reh3 {[%clk
0:00:06.9]} 36. Rf2 {[%clk 0:00:09.9]} 36... Qe1+ {[%clk 0:00:06.1]} 37. Rf1
{[%clk 0:00:09.5]} 37... Qe3+ {[%clk 0:00:05.8]} 38. Rf2 {[%clk 0:00:09.8]}
38... Qxf2# {[%clk 0:00:06.4]} 0-1

[Event "*** Titled Tuesday Blitz"]
[Site "Chess.com"]
[Date "2021.04.27"]
[Round "2"]
[White "gisela_roque"]
[Black "Kaua18"]
[Result "0-1"]
[WhiteElo "1881"]
[BlackElo "2348"]
[TimeControl "180+1"]
[EndTime "10:18:26 PDT"]
[Termination "Kaua18 won by resignation"]

1. c4 {[%clk 0:03:00.1]} 1... Nf6 {[%clk 0:02:59.6]} 2. Nf3 {[%clk 0:02:59.5]}
2... e6 {[%clk 0:03:00.5]} 3. g3 {[%clk 0:02:59.3]} 3... d5 {[%clk 0:03:01.4]}
4. b3 {[%clk 0:02:59.5]} 4... Be7 {[%clk 0:03:01.6]} 5. Bg2 {[%clk 0:02:59.6]}
5... O-O {[%clk 0:03:02.1]} 6. O-O {[%clk 0:02:59.5]} 6... dxc4 {[%clk
0:03:01.5]} 7. bxc4 {[%clk 0:02:59.2]} 7... c5 {[%clk 0:03:02.2]} 8. d3 {[%clk
0:02:59]} 8... Nc6 {[%clk 0:03:01.7]} 9. Nc3 {[%clk 0:02:59]} 9... a6 {[%clk
0:02:58.2]} 10. Rb1 {[%clk 0:02:59.1]} 10... Qc7 {[%clk 0:02:58.5]} 11. Bf4
{[%clk 0:02:44.9]} 11... e5 {[%clk 0:02:57.8]} 12. Bg5 {[%clk 0:02:45]} 12...
Be6 {[%clk 0:02:57.3]} 13. Nd2 {[%clk 0:02:27.2]} 13... Rfd8 {[%clk 0:02:51.2]}
14. Bxf6 {[%clk 0:02:22]} 14... Bxf6 {[%clk 0:02:52.1]} 15. Nde4 {[%clk
0:02:21.8]} 15... Be7 {[%clk 0:02:52]} 16. Na4 {[%clk 0:02:16.6]} 16... Nd4
{[%clk 0:02:25.2]} 17. e3 {[%clk 0:02:09]} 17... Nf5 {[%clk 0:02:24.1]} 18. Nec3
{[%clk 0:01:55.3]} 18... Rab8 {[%clk 0:02:21.7]} 19. Nb6 {[%clk 0:01:46.7]}
19... g6 {[%clk 0:02:15.1]} 20. Ncd5 {[%clk 0:01:38.8]} 20... Qd6 {[%clk
0:02:10]} 21. Nxe7+ {[%clk 0:01:18.5]} 21... Qxe7 {[%clk 0:02:10.9]} 22. Nd5
{[%clk 0:01:16.6]} 22... Qd6 {[%clk 0:02:09.3]} 23. Rb6 {[%clk 0:01:13.8]} 23...
Qf8 {[%clk 0:02:04]} 24. Qb3 {[%clk 0:01:09.6]} 24... Nd6 {[%clk 0:01:58.7]} 25.
Nf6+ {[%clk 0:01:00.5]} 25... Kg7 {[%clk 0:01:58.9]} 26. Ne4 {[%clk 0:01:00.3]}
26... Nxe4 {[%clk 0:01:58.9]} 27. Bxe4 {[%clk 0:00:59.3]} 27... Rd7 {[%clk
0:01:53.7]} 28. Bxb7 {[%clk 0:00:50.1]} 28... Qd8 {[%clk 0:01:47.3]} 29. Rb1
{[%clk 0:00:43.6]} 29... Rxd3 {[%clk 0:01:43.8]} 30. Qb2 {[%clk 0:00:37.5]}
30... Bxc4 {[%clk 0:01:03.4]} 31. Qxe5+ {[%clk 0:00:37.1]} 31... Kg8 {[%clk
0:01:03.7]} 32. Qxc5 {[%clk 0:00:35.4]} 32... Rd1+ {[%clk 0:01:01.3]} 33. Kg2
{[%clk 0:00:27.7]} 33... Rxb7 {[%clk 0:00:35.5]} 34. Rxb7 {[%clk 0:00:27.5]}
34... Bf1+ {[%clk 0:00:16.6]} 35. Kf3 {[%clk 0:00:16.8]} 35... Qf6+ {[%clk
0:00:16.1]} 36. Kg4 {[%clk 0:00:05.7]} 36... h5+ {[%clk 0:00:15]} 0-1

[Event "*** Titled Tuesday Blitz"]
[Site "Chess.com"]
[Date "2021.04.27"]
[Round "2"]
[White "Abund"]
[Black "atbenina64"]
[Result "1-0"]
[WhiteElo "2749"]
[BlackElo "2516"]
[TimeControl "180+1"]
[EndTime "10:18:28 PDT"]
[Termination "Abund won by resignation"]

1. e4 {[%clk 0:03:00.9]} 1... c6 {[%clk 0:02:59.6]} 2. d4 {[%clk 0:03:00.7]}
2... d5 {[%clk 0:03:00.5]} 3. e5 {[%clk 0:03:00.7]} 3... Bf5 {[%clk 0:03:00]} 4.
Nd2 {[%clk 0:03:01]} 4... e6 {[%clk 0:03:00]} 5. Nb3 {[%clk 0:03:01]} 5... Nd7
{[%clk 0:03:00.4]} 6. Nf3 {[%clk 0:03:01.3]} 6... h6 {[%clk 0:03:00.8]} 7. Be2
{[%clk 0:03:01.3]} 7... Ne7 {[%clk 0:03:01.1]} 8. O-O {[%clk 0:03:01.5]} 8...
Qc7 {[%clk 0:03:01.7]} 9. Bd2 {[%clk 0:02:57.9]} 9... g5 {[%clk 0:03:00]} 10.
Bb4 {[%clk 0:02:52.8]} 10... Ng6 {[%clk 0:02:56]} 11. Bxf8 {[%clk 0:02:49.9]}
11... Kxf8 {[%clk 0:02:53.6]} 12. Ne1 {[%clk 0:02:50]} 12... Nf4 {[%clk
0:02:47]} 13. Bg4 {[%clk 0:02:28.9]} 13... Bxg4 {[%clk 0:02:40.9]} 14. Qxg4
{[%clk 0:02:28.5]} 14... f5 {[%clk 0:02:41.5]} 15. exf6 {[%clk 0:02:16.4]} 15...
Nxf6 {[%clk 0:02:41.5]} 16. Qf3 {[%clk 0:02:10.1]} 16... Kg7 {[%clk 0:02:37.5]}
17. g3 {[%clk 0:02:06.5]} 17... Ng6 {[%clk 0:02:29.8]} 18. Nd3 {[%clk
0:02:02.5]} 18... Rhf8 {[%clk 0:02:29.6]} 19. Nbc5 {[%clk 0:01:52.8]} 19... Rae8
{[%clk 0:02:28.3]} 20. Rae1 {[%clk 0:01:50]} 20... Ne4 {[%clk 0:02:09.6]} 21.
Qg4 {[%clk 0:01:49]} 21... Nd2 {[%clk 0:01:01.9]} 22. Nxe6+ {[%clk 0:01:28.9]}
22... Rxe6 {[%clk 0:01:01.4]} 23. Rxe6 {[%clk 0:01:26]} 23... Nxf1 {[%clk
0:00:57.6]} 24. Kxf1 {[%clk 0:01:25.4]} 24... Qf7 {[%clk 0:00:34.4]} 25. Re2
{[%clk 0:01:14.1]} 25... Qf6 {[%clk 0:00:31.8]} 26. Nc5 {[%clk 0:01:10.6]} 26...
Rf7 {[%clk 0:00:18.6]} 27. c3 {[%clk 0:01:07.8]} 27... b6 {[%clk 0:00:18.4]} 28.
Nd3 {[%clk 0:01:04.1]} 28... Qd6 {[%clk 0:00:17.1]} 29. Re6 {[%clk 0:01:01.4]}
29... Qc7 {[%clk 0:00:16.5]} 30. h4 {[%clk 0:00:47.3]} 30... Rf6 {[%clk
0:00:10.6]} 31. hxg5 {[%clk 0:00:32.7]} 31... hxg5 {[%clk 0:00:10.6]} 32. Re8
{[%clk 0:00:28.4]} 32... Qf7 {[%clk 0:00:08.4]} 33. Re2 {[%clk 0:00:27.4]} 33...
Kh6 {[%clk 0:00:06.1]} 34. Kg2 {[%clk 0:00:25]} 34... Ne7 {[%clk 0:00:04.8]} 35.
Ne5 {[%clk 0:00:23.6]} 35... Qe6 {[%clk 0:00:03.6]} 36. Qxe6 {[%clk 0:00:23.5]}
36... Rxe6 {[%clk 0:00:04.5]} 37. Ng4+ {[%clk 0:00:21.4]} 1-0